bitfinex/quotes_ETHUSD_20230105
["timestamp","ask_amount","ask_price","bid_price","bid_amount"]
[1672917073646,11.48594,1252.2,1252.1,1.08938839]
[1672917073964,8.02667445,1252.2,1252.1,1.08938839]
[1672917075285,0.04073445,1252.2,1252.1,1.08938839]
[1672917075507,16.01162445,1252.3,1252.1,1.08938839]
[1672917075811,8.02603445,1252.3,1252.1,1.08938839]
[1672917076170,16.01178445,1252.3,1252.1,1.08938839]
[1672917077332,16.06178445,1252.3,1252.1,1.08938839]
[1672917077564,16.01178445,1252.3,1252.1,1.08938839]
[1672917079449,8.02603445,1252.3,1252.1,1.08938839]
[1672917079657,0.04073445,1252.3,1252.2,0.47855925]
[1672917080016,8.28983445,1252.4,1252.1,32.62269822]
[1672917080162,8.28983445,1252.4,1252.2,0.47855925]
[1672917080914,8.28983445,1252.4,1252.2,20.08377117]
[1672917081129,8.28983445,1252.4,1252.2,23.82316411]
[1672917081426,0.04073445,1252.4,1252.2,23.82316411]
[1672917081559,9.71953445,1252.5,1252.2,23.82316411]
[1672917081964,9.71953445,1252.5,1252.2,15.83739411]
[1672917082181,9.71953445,1252.5,1252.2,23.82333411]
[1672917083961,0.04073445,1252.5,1252.2,27.81248362]
[1672917084170,43.55711277,1252.6,1252.2,27.81248362]
[1672917084642,43.55711277,1252.6,1252.2,19.82654362]
[1672917085593,0.05,1252.5,1252.2,19.82654362]
[1672917085781,3.5,1252.5,1252.2,19.82654362]
[1672917085994,11.48407,1252.5,1252.2,19.82654362]
[1672917086207,8.02480445,1252.5,1252.2,19.82654362]
[1672917087084,8.02480445,1252.5,1252.2,11.84112362]
[1672917087683,11.52480445,1252.5,1252.2,11.84112362]
[1672917087888,8.02480445,1252.5,1252.2,11.84112362]
[1672917088347,8.02480445,1252.5,1252.2,19.82706362]
[1672917089441,0.04073445,1252.5,1252.2,19.82706362]
[1672917089688,43.52626832,1252.6,1252.3,3.0]
[1672917089689,43.55700277,1252.6,1252.3,3.0]
[1672917090119,18.94855277,1252.6,1252.3,15.99634185]
[1672917090342,18.54968025,1252.6,1252.3,22.0260911]
[1672917090646,18.54968025,1252.6,1252.3,22.02353462]
[1672917091342,10.56614025,1252.6,1252.4,3.98914951]
[1672917091555,10.56614025,1252.6,1252.5,3.0]
[1672917093758,10.56614025,1252.6,1252.5,2.99659386]
[1672917104210,18.54953025,1252.6,1252.5,2.99659386]
[1672917105415,10.56614025,1252.6,1252.5,2.99659386]
[1672917108215,10.61614025,1252.6,1252.5,2.99659386]
[1672917108354,10.56614025,1252.6,1252.5,2.99659386]
[1672917109035,18.54953025,1252.6,1252.5,2.99659386]
[1672917110174,10.56614025,1252.6,1252.5,2.99659386]
[1672917112372,10.51614025,1252.6,1252.5,2.99659386]
[1672917116678,18.49953025,1252.6,1252.5,2.99659386]
[1672917124896,10.51614025,1252.6,1252.5,2.99659386]
[1672917135781,10.51614025,1252.6,1252.5,2.99333751]
[1672917142580,10.91880665,1252.6,1252.5,2.99333751]
[1672917147240,10.96880665,1252.6,1252.5,2.99333751]
[1672917147453,10.91880665,1252.6,1252.5,2.99333751]
[1672917147607,10.51614025,1252.6,1252.5,2.99333751]
[1672917154995,10.92179487,1252.6,1252.5,2.99333751]
[1672917158267,10.92179487,1252.6,1252.5,2.99100353]
[1672917177488,18.90518487,1252.6,1252.5,2.99100353]
[1672917177842,10.92179487,1252.6,1252.5,2.99100353]
[1672917179427,18.90518487,1252.6,1252.5,2.99100353]
[1672917180367,10.92179487,1252.6,1252.5,2.99100353]
[1672917181100,10.92179487,1252.6,1252.5,2.98801401]
[1672917186538,18.90518487,1252.6,1252.5,2.98801401]
[1672917192184,34.87196487,1252.6,1252.5,2.98801401]
[1672917193250,26.88857487,1252.6,1252.5,2.98801401]
[1672917193942,34.87196487,1252.6,1252.5,2.98801401]
[1672917194137,26.88857487,1252.6,1252.5,2.98801401]
[1672917194872,34.87196487,1252.6,1252.5,2.98801401]
[1672917195238,26.88857487,1252.6,1252.5,2.98801401]
[1672917196398,18.90518487,1252.6,1252.5,2.98801401]
[1672917198097,34.87196487,1252.6,1252.5,2.98801401]
[1672917198307,26.88857487,1252.6,1252.5,2.98801401]
[1672917199712,34.87196487,1252.6,1252.5,2.98801401]
[1672917199926,26.88857487,1252.6,1252.5,2.98801401]
[1672917200151,34.87196487,1252.6,1252.5,2.98801401]
[1672917200364,26.88857487,1252.6,1252.5,2.98801401]
[1672917200810,34.87196487,1252.6,1252.5,2.98801401]
[1672917201353,26.88857487,1252.6,1252.5,2.98801401]
[1672917201563,18.90518487,1252.6,1252.5,2.98801401]
[1672917202815,18.90518487,1252.6,1252.5,2.98499407]
[1672917205508,26.88857487,1252.6,1252.5,2.98499407]
[1672917211495,18.90518487,1252.6,1252.5,2.98499407]
[1672917212133,26.88857487,1252.6,1252.5,2.98499407]
[1672917224095,26.88857487,1252.6,1252.5,2.98104792]
[1672917229038,26.88857487,1252.6,1252.5,4.03756438]
[1672917230679,27.11857487,1252.6,1252.5,4.03756438]
[1672917231082,19.13518487,1252.6,1252.5,4.03756438]
[1672917241677,19.18518487,1252.6,1252.5,4.03756438]
[1672917242019,11.15179487,1252.6,1252.5,4.03756438]
[1672917243450,19.13518487,1252.6,1252.5,4.03756438]
[1672917245792,19.18518487,1252.6,1252.5,4.03756438]
[1672917246132,19.13518487,1252.6,1252.5,4.03521383]
[1672917247851,19.18518487,1252.6,1252.5,4.03521383]
[1672917248170,19.13518487,1252.6,1252.5,4.03521383]
[1672917248340,11.15179487,1252.6,1252.5,4.03521383]
[1672917248545,10.92179487,1252.6,1252.5,4.03521383]
[1672917248761,10.92179487,1252.6,1252.5,4.29241383]
[1672917250346,18.90518487,1252.6,1252.5,4.29241383]
[1672917251274,10.92179487,1252.6,1252.5,4.29241383]
[1672917251848,18.90518487,1252.6,1252.5,4.29241383]
[1672917253588,10.92179487,1252.6,1252.5,4.29241383]
[1672917253862,10.91843946,1252.6,1252.5,4.29241383]
[1672917254074,10.91843946,1252.6,1252.5,4.03521383]
[1672917265863,10.91843946,1252.6,1252.5,17.50087145]
[1672917266213,10.91843946,1252.6,1252.5,13.93284953]
[1672917266363,10.91843946,1252.6,1252.5,5.94881953]
[1672917268421,10.51278484,1252.6,1252.5,5.94881953]
[1672917269412,10.51278484,1252.6,1252.5,13.57199096]
[1672917269884,10.51278484,1252.6,1252.5,13.56999096]
[1672917270055,10.51278484,1252.6,1252.5,21.55602096]
[1672917270488,10.51278484,1252.6,1252.5,17.92199904]
[1672917270694,10.51278484,1252.6,1252.5,9.93796904]
[1672917275227,10.51278484,1252.6,1252.5,17.92199904]
[1672917275444,10.90521878,1252.6,1252.5,9.93796904]
[1672917276005,10.51278484,1252.6,1252.5,17.92199904]
[1672917277222,10.51278484,1252.6,1252.5,17.91858211]
[1672917280606,10.51278484,1252.6,1252.5,9.93455211]
[1672917284143,10.51278484,1252.6,1252.5,17.91858211]
[1672917284876,10.51278484,1252.6,1252.5,9.93455211]
[1672917285713,26.47956484,1252.6,1252.5,9.93455211]
[1672917286083,10.51278484,1252.6,1252.5,9.93455211]
[1672917289057,10.51278484,1252.6,1252.5,17.91858211]
[1672917289711,10.91900031,1252.6,1252.5,17.91858211]
[1672917292402,10.91900031,1252.6,1252.5,9.93455211]
[1672917294287,10.91900031,1252.6,1252.5,8.08694641]
[1672917295547,10.91900031,1252.6,1252.5,4.0977969]
[1672917295759,10.91900031,1252.6,1252.5,4.0317969]
[1672917297993,10.91900031,1252.6,1252.5,4.02829854]
[1672917304291,10.91900031,1252.6,1252.5,12.01232854]
[1672917304499,10.91900031,1252.6,1252.5,12.07832854]
[1672917309061,10.51278484,1252.6,1252.5,32.03553805]
[1672917309328,10.51278484,1252.6,1252.5,37.43930517]
[1672917314196,10.51278484,1252.6,1252.5,29.45527517]
[1672917315520,10.51278484,1252.6,1252.5,21.47124517]
[1672917315951,10.51278484,1252.6,1252.5,13.48721517]
[1672917317592,10.90869416,1252.6,1252.5,16.06747805]
[1672917317809,10.90869416,1252.6,1252.5,8.08344805]
[1672917320507,10.90869416,1252.6,1252.5,16.06747805]
[1672917322527,10.90869416,1252.6,1252.5,8.08344805]
[1672917322958,10.90869416,1252.6,1252.5,8.07960198]
[1672917323817,10.90589223,1252.6,1252.5,8.07960198]
[1672917325237,10.90589223,1252.6,1252.5,16.06363198]
[1672917327067,10.90589223,1252.6,1252.5,4.09045247]
[1672917327445,10.90589223,1252.6,1252.5,4.02445247]
[1672917331820,10.90589223,1252.6,1252.5,12.00848247]
[1672917332045,10.90589223,1252.6,1252.5,12.07448247]
[1672917334065,10.90589223,1252.6,1252.5,4.09045247]
[1672917334382,10.90589223,1252.6,1252.5,4.02445247]
[1672917338577,10.90589223,1252.6,1252.5,12.00848247]
[1672917338791,10.90589223,1252.6,1252.5,12.07448247]
[1672917344373,10.90589223,1252.6,1252.5,4.09045247]
[1672917344543,10.90589223,1252.6,1252.5,4.02445247]
[1672917344952,18.88928223,1252.6,1252.5,4.02445247]
[1672917346505,10.90589223,1252.6,1252.5,4.02064246]
[1672917350747,10.90589223,1252.6,1252.5,12.00467246]
[1672917351102,10.90589223,1252.6,1252.5,12.07067246]
[1672917352764,10.90589223,1252.6,1252.5,4.08664246]
[1672917352971,10.90589223,1252.6,1252.5,4.02064246]
[1672917355317,10.90589223,1252.6,1252.5,12.00467246]
[1672917355625,10.90589223,1252.6,1252.5,12.07067246]
[1672917360389,10.90589223,1252.6,1252.5,4.08664246]
[1672917360608,10.90589223,1252.6,1252.5,4.02064246]
[1672917360746,10.90589223,1252.6,1252.5,12.00467246]
[1672917360955,10.90589223,1252.6,1252.5,12.07067246]
[1672917368169,10.90589223,1252.6,1252.5,4.08664246]
[1672917368318,10.90589223,1252.6,1252.5,4.02064246]
[1672917370900,10.90589223,1252.6,1252.5,4.01709467]
[1672917371614,10.90589223,1252.6,1252.5,8.00624418]
[1672917371821,10.90589223,1252.6,1252.5,37.01376249]
[1672917373379,10.90589223,1252.6,1252.5,35.03174791]
[1672917374999,10.90589223,1252.6,1252.5,19.06368791]
[1672917375313,10.90589223,1252.6,1252.5,16.05627418]
[1672917378373,10.90589223,1252.6,1252.5,24.04030418]
[1672917378703,10.90589223,1252.6,1252.5,16.05627418]
[1672917379501,10.90589223,1252.6,1252.5,24.04030418]
[1672917382199,10.90589223,1252.6,1252.5,32.02433418]
[1672917384685,10.90589223,1252.6,1252.5,24.04030418]
[1672917385764,10.90589223,1252.6,1252.5,32.02433418]
[1672917386469,10.90589223,1252.6,1252.5,32.50289343]
[1672917388351,10.90589223,1252.6,1252.5,24.51886343]
[1672917391985,10.90589223,1252.6,1252.5,32.50289343]
[1672917392507,10.90380715,1252.6,1252.5,32.50289343]
[1672917393184,10.90380715,1252.6,1252.5,37.22358717]
[1672917399421,10.90380715,1252.6,1252.5,41.34670909]
[1672917399811,9.31869337,1252.6,1252.5,42.66770574]
[1672917403927,7.20472672,1252.6,1252.5,43.86304353]
[1672917404483,7.20472672,1252.6,1252.5,47.49379643]
[1672917404883,7.20472672,1252.6,1252.5,42.66770574]
[1672917405297,7.20472672,1252.6,1252.5,42.64667474]
[1672917407113,7.15472672,1252.6,1252.5,42.64667474]
[1672917409434,7.15472672,1252.6,1252.5,46.27742764]
[1672917409649,7.15472672,1252.6,1252.5,47.47276543]
[1672917409858,7.15472672,1252.6,1252.5,43.84201253]
[1672917410066,7.15472672,1252.6,1252.5,42.64667474]
[1672917411727,7.15472672,1252.6,1252.5,46.27742764]
[1672917411920,7.15472672,1252.6,1252.5,47.47276543]
[1672917412540,7.15472672,1252.6,1252.5,42.64667474]
[1672917412906,7.15472672,1252.6,1252.5,43.84201253]
[1672917413114,7.15472672,1252.6,1252.5,42.64667474]
[1672917413432,7.15472672,1252.6,1252.5,46.27742764]
[1672917414017,0.13614025,1252.6,1252.5,46.27742764]
[1672917414193,0.0954058,1252.6,1252.5,46.27742764]
[1672917419864,0.0954058,1252.6,1252.5,47.47276543]
[1672917423318,0.0954058,1252.6,1252.5,46.27742764]
[1672917424098,1e-08,1252.6,1252.5,46.68505446]
[1672917426303,1e-08,1252.6,1252.5,42.56520156]
[1672917432784,1e-08,1252.6,1252.5,46.19595446]
[1672917432998,1e-08,1252.6,1252.5,42.56520156]
[1672917437190,1e-08,1252.6,1252.5,46.19595446]
[1672917439395,1e-08,1252.6,1252.5,47.39129225]
[1672917439932,0.13158687,1252.7,1252.5,47.39129225]
[1672917440159,0.13158687,1252.7,1252.6,6.48914951]
[1672917440434,0.13158687,1252.7,1252.6,33.50531951]
[1672917440573,0.13158687,1252.7,1252.6,33.98387876]
[1672917440891,0.13158687,1252.7,1252.6,31.48387876]
[1672917443635,0.13158687,1252.7,1252.6,31.50062363]
[1672917444700,0.13158687,1252.7,1252.6,33.48247217]
[1672917445548,0.13358687,1252.7,1252.6,36.45317119]
[1672917445700,0.13158687,1252.7,1252.6,33.48247217]
[1672917446232,0.13158687,1252.7,1252.6,36.45518548]
[1672917446444,0.13158687,1252.7,1252.6,33.48247217]
[1672917447341,0.13158687,1252.7,1252.6,36.45519825]
[1672917448221,0.13158687,1252.7,1252.6,33.48247217]
[1672917450700,0.13158687,1252.7,1252.6,52.32637719]
[1672917452338,0.13158687,1252.7,1252.6,47.48247217]
[1672917461238,0.13158687,1252.7,1252.6,45.50062363]
[1672917461239,0.03158687,1252.7,1252.6,45.50062363]
[1672917471113,0.03158687,1252.7,1252.6,46.70603621]
[1672917472439,0.03158687,1252.7,1252.6,50.33678911]
[1672917472659,0.03158687,1252.7,1252.6,55.29146666]
[1672917472844,0.03158687,1252.7,1252.6,58.57986658]
[1672917477197,0.03158687,1252.7,1252.6,62.21061948]
[1672917477427,0.03158687,1252.7,1252.6,58.57986658]
[1672917478667,0.03158687,1252.7,1252.6,58.57978738]
[1672917479456,0.03158687,1252.7,1252.6,55.60706005]
[1672917479826,0.03158687,1252.7,1252.6,53.62518903]
[1672917480911,0.03158687,1252.7,1252.6,55.6070441]
[1672917484173,0.03158687,1252.7,1252.6,55.6032551]
[1672917491084,0.16366122,1252.8,1252.6,55.6032551]
[1672917491296,0.16366122,1252.8,1252.7,3.0]
[1672917491643,0.16366122,1252.8,1252.7,26.94825]
[1672917491855,0.16366122,1252.8,1252.7,27.01425]
[1672917511825,0.16366122,1252.8,1252.7,27.01202108]
[1672917514633,0.16566122,1252.8,1252.7,27.01002108]
[1672917514840,0.16366122,1252.8,1252.7,27.01202108]
[1672917522574,0.16366122,1252.8,1252.7,19.02927108]
[1672917523452,0.16366122,1252.8,1252.7,11.04652108]
[1672917523664,0.16366122,1252.8,1252.7,3.06377108]
[1672917523993,0.16366122,1252.8,1252.7,18.96327108]
[1672917524190,0.16366122,1252.8,1252.7,3.06377108]
[1672917524440,0.16366122,1252.8,1252.7,2.99777108]
[1672917525069,0.15983382,1252.8,1252.7,2.99777108]
[1672917526075,0.15983382,1252.8,1252.7,10.98052108]
[1672917526289,0.15983382,1252.8,1252.7,11.04652108]
[1672917526561,0.15983382,1252.8,1252.7,27.01202108]
[1672917538311,0.15983382,1252.8,1252.7,11.04652108]
[1672917538517,16.12407382,1252.8,1252.7,0.066]
[1672917538784,24.14692827,1252.8,1252.6,1.20541258]
[1672917546108,24.14692827,1252.8,1252.6,1.2025213]
[1672917547953,16.16480827,1252.8,1252.6,1.2025213]
[1672917549162,28.13607778,1252.8,1252.6,1.2025213]
[1672917549486,16.1955,1252.7,1252.6,1.2025213]
[1672917549722,16.23623445,1252.7,1252.6,1.2025213]
[1672917551057,21.23623445,1252.7,1252.6,1.2025213]
[1672917556203,29.21898445,1252.7,1252.6,1.2025213]
[1672917556888,36.03334817,1252.7,1252.6,1.2025213]
[1672917557217,36.63244817,1252.7,1252.6,1.2025213]
[1672917557573,37.11100742,1252.7,1252.6,1.2025213]
[1672917565173,32.11100742,1252.7,1252.6,1.2025213]
[1672917566076,37.11100742,1252.7,1252.6,1.2025213]
[1672917568920,37.11100742,1252.7,1252.6,1.19892185]
[1672917572272,34.28579321,1252.7,1252.6,1.19892185]
[1672917573708,37.10222952,1252.7,1252.6,1.19892185]
[1672917574447,45.50822952,1252.7,1252.6,1.19892185]
[1672917577851,44.90912952,1252.7,1252.6,1.19892185]
[1672917578110,39.90912952,1252.7,1252.6,1.19892185]
[1672917578328,37.09269321,1252.7,1252.6,1.19892185]
[1672917579188,44.91028493,1252.7,1252.6,1.19892185]
[1672917583364,12.104,1252.6,1252.3,7.7951]
[1672917583563,43.973054,1252.5,1252.3,7.7951]
[1672917583780,13.55914951,1252.4,1252.3,0.066]
[1672917583983,3.5,1252.3,1252.1,0.05123567]
[1672917584193,16.20188,1252.2,1252.1,0.05123567]
[1672917584427,16.24261445,1252.2,1252.1,0.05123567]
[1672917585482,24.22855445,1252.2,1252.1,0.05123567]
[1672917587073,24.22614572,1252.2,1252.1,0.05123567]
[1672917587739,0.26832572,1252.2,1252.1,0.05123567]
[1672917587874,0.22759127,1252.2,1252.1,0.05123567]
[1672917588321,8.21353127,1252.2,1252.1,0.05123567]
[1672917588507,8.25426572,1252.2,1252.1,0.05123567]
[1672917590327,0.26832572,1252.2,1252.1,0.05123567]
[1672917590674,0.22759127,1252.2,1252.1,0.05123567]
[1672917591035,8.21353127,1252.2,1252.1,0.05123567]
[1672917591244,8.25426572,1252.2,1252.1,0.05123567]
[1672917593931,16.24020572,1252.2,1252.1,0.05123567]
[1672917595139,16.24020572,1252.2,1252.1,0.07709567]
[1672917595351,8.25426572,1252.2,1252.1,0.07709567]
[1672917595785,16.24020572,1252.2,1252.1,0.07709567]
[1672917598152,16.24020572,1252.2,1252.1,0.05123567]
[1672917598473,0.26832572,1252.2,1252.1,0.05123567]
[1672917598615,0.22759127,1252.2,1252.1,0.05123567]
[1672917600509,0.22759127,1252.2,1252.1,8.03781567]
[1672917600736,8.21533,1252.3,1252.1,0.11723567]
[1672917601067,16.24159445,1252.3,1252.1,0.05123567]
[1672917601283,24.22712445,1252.3,1252.1,0.05123567]
[1672917603828,7.98594,1252.2,1252.1,0.05123567]
[1672917603978,8.02667445,1252.2,1252.1,0.05123567]
[1672917604628,0.04073445,1252.2,1252.1,0.05123567]
[1672917604975,24.22736445,1252.3,1252.1,0.05123567]
[1672917606604,16.24159445,1252.3,1252.1,0.05123567]
[1672917608621,24.22728445,1252.3,1252.1,0.05123567]
[1672917609364,0.05,1252.2,1252.1,0.05123567]
[1672917609575,24.22728445,1252.3,1252.1,0.05123567]
[1672917610178,24.22728445,1252.3,1252.1,1.11373979]
[1672917611394,24.22728445,1252.3,1252.1,1.11045633]
[1672917621842,11.48594,1252.2,1252.1,1.11045633]
[1672917622010,8.02667445,1252.2,1252.1,1.11045633]
[1672917625587,16.01261445,1252.2,1252.1,1.11045633]
[1672917630862,23.99855445,1252.2,1252.1,1.11045633]
[1672917631911,24.22855445,1252.2,1252.1,1.11045633]
[1672917632743,24.22855445,1252.2,1252.1,1.10732459]
[1672917638725,16.24261445,1252.2,1252.1,1.10732459]
[1672917638941,0.04073445,1252.2,1252.1,1.10732459]
[1672917639187,16.01173445,1252.3,1252.1,1.10732459]
[1672917642691,16.00855145,1252.3,1252.1,1.10732459]
[1672917643212,8.02288145,1252.3,1252.1,1.10732459]
[1672917644199,16.00855145,1252.3,1252.1,1.10732459]
[1672917650061,23.99422145,1252.3,1252.1,1.10732459]
[1672917654523,1.337,1252.2,1252.1,1.10732459]
[1672917654791,28.74482,1252.2,1252.1,1.10732459]
[1672917654960,28.78555445,1252.2,1252.1,1.10732459]
[1672917657478,29.01555445,1252.2,1252.1,1.10732459]
[1672917658550,36.46786557,1252.2,1252.1,1.10732459]
[1672917658762,38.00470396,1252.2,1252.1,1.10732459]
[1672917662522,10.54688396,1252.2,1252.1,1.10732459]
[1672917662727,34.50470396,1252.2,1252.1,1.10732459]
[1672917664670,29.50470396,1252.2,1252.1,1.10732459]
[1672917665696,34.50470396,1252.2,1252.1,1.10732459]
[1672917667510,34.50470396,1252.2,1252.1,1.10371499]
[1672917671646,29.50470396,1252.2,1252.1,1.10371499]
[1672917672651,34.50470396,1252.2,1252.1,1.10371499]
[1672917678758,29.50470396,1252.2,1252.1,1.10371499]
[1672917679644,34.50470396,1252.2,1252.1,1.10371499]
[1672917681278,34.55470396,1252.2,1252.1,1.10371499]
[1672917681427,34.50470396,1252.2,1252.1,1.10371499]
[1672917685693,29.50470396,1252.2,1252.1,1.10371499]
[1672917686725,34.50470396,1252.2,1252.1,1.10371499]
[1672917689038,34.50470396,1252.2,1252.1,1.10106967]
[1672917692612,29.50470396,1252.2,1252.1,1.10106967]
[1672917693623,34.50470396,1252.2,1252.1,1.10106967]
[1672917695525,37.96527637,1252.2,1252.1,1.10106967]
[1672917696091,34.50470396,1252.2,1252.1,1.10106967]
[1672917697590,37.96373738,1252.2,1252.1,1.10106967]
[1672917698094,34.50470396,1252.2,1252.1,1.10106967]
[1672917699411,37.96374862,1252.2,1252.1,1.10106967]
[1672917700394,34.50470396,1252.2,1252.1,1.10106967]
[1672917701675,37.96339184,1252.2,1252.1,1.10106967]
[1672917701886,34.50470396,1252.2,1252.1,1.10106967]
[1672917702333,37.96339184,1252.2,1252.1,1.10106967]
[1672917704397,37.96341878,1252.2,1252.1,1.10106967]
[1672917705223,34.50470396,1252.2,1252.1,1.10106967]
[1672917708112,29.50470396,1252.2,1252.1,1.10106967]
[1672917709062,34.50470396,1252.2,1252.1,1.10106967]
[1672917713892,34.50470396,1252.2,1252.1,1.09899477]
[1672917715161,29.50470396,1252.2,1252.1,1.09899477]
[1672917716069,34.50470396,1252.2,1252.1,1.09899477]
[1672917722102,29.50470396,1252.2,1252.1,1.09899477]
[1672917723211,34.50470396,1252.2,1252.1,1.09899477]
[1672917729064,29.50470396,1252.2,1252.1,1.09899477]
[1672917730009,34.50470396,1252.2,1252.1,1.09899477]
[1672917730981,34.50183485,1252.2,1252.1,1.09899477]
[1672917731195,33.21770396,1252.2,1252.1,1.09899477]
[1672917736224,28.21770396,1252.2,1252.1,1.09899477]
[1672917737080,33.21770396,1252.2,1252.1,1.09899477]
[1672917743146,28.21770396,1252.2,1252.1,1.09899477]
[1672917744201,33.21770396,1252.2,1252.1,1.09899477]
[1672917744779,25.23176396,1252.2,1252.1,1.09899477]
[1672917745742,33.21770396,1252.2,1252.1,1.09899477]
[1672917746141,25.23176396,1252.2,1252.1,1.09899477]
[1672917746560,33.21770396,1252.2,1252.1,1.09899477]
[1672917747512,25.23176396,1252.2,1252.1,1.09899477]
[1672917747989,17.24582396,1252.2,1252.1,1.09899477]
[1672917748313,25.23176396,1252.2,1252.1,1.09899477]
[1672917748465,33.21770396,1252.2,1252.1,1.09899477]
[1672917748671,25.23176396,1252.2,1252.1,1.09899477]
[1672917750306,33.21770396,1252.2,1252.1,1.09899477]
[1672917751629,28.21770396,1252.2,1252.1,1.09899477]
[1672917752589,33.21770396,1252.2,1252.1,1.09899477]
[1672917752872,33.21770396,1252.2,1252.1,1.09594744]
[1672917757704,25.23176396,1252.2,1252.1,1.09594744]
[1672917757910,33.21770396,1252.2,1252.1,1.09594744]
[1672917758664,28.21770396,1252.2,1252.1,1.09594744]
[1672917759644,33.21770396,1252.2,1252.1,1.09594744]
[1672917772392,28.21770396,1252.2,1252.1,1.09594744]
[1672917773003,28.21770396,1252.2,1252.1,1.09356852]
[1672917773418,33.21770396,1252.2,1252.1,1.09356852]
[1672917779262,28.21770396,1252.2,1252.1,1.09356852]
[1672917780310,33.21770396,1252.2,1252.1,1.09356852]
[1672917784968,21.24261445,1252.2,1252.1,1.09356852]
[1672917785180,13.02667445,1252.2,1252.1,1.09356852]
[1672917785372,28.99855445,1252.2,1252.1,1.09356852]
[1672917792412,23.99855445,1252.2,1252.1,1.09356852]
[1672917793321,28.99855445,1252.2,1252.1,1.09356852]
[1672917795515,28.99855445,1252.2,1252.1,1.09089945]
[1672917799448,23.99855445,1252.2,1252.1,1.09089945]
[1672917800217,28.99855445,1252.2,1252.1,1.09089945]
[1672917801090,28.99843107,1252.2,1252.1,1.36314021]
[1672917805572,21.01249107,1252.2,1252.1,1.36314021]
[1672917806238,16.01249107,1252.2,1252.1,1.36314021]
[1672917807303,21.01249107,1252.2,1252.1,1.36314021]
[1672917807920,28.99843107,1252.2,1252.1,1.36314021]
[1672917808773,32.98758058,1252.2,1252.1,1.36314021]
[1672917808988,33.21758058,1252.2,1252.1,1.36314021]
[1672917815235,28.21758058,1252.2,1252.1,1.36314021]
[1672917816180,33.21758058,1252.2,1252.1,1.36314021]
[1672917822154,28.21758058,1252.2,1252.1,1.36314021]
[1672917823172,33.21758058,1252.2,1252.1,1.36314021]
[1672917824639,33.21758058,1252.2,1252.1,1.36060826]
[1672917833213,28.21758058,1252.2,1252.1,1.36060826]
[1672917834476,33.21758058,1252.2,1252.1,1.36060826]
[1672917840189,28.21758058,1252.2,1252.1,1.36060826]
[1672917841361,33.21758058,1252.2,1252.1,1.36060826]
[1672917847094,33.21758058,1252.2,1252.1,1.3578244]
[1672917847311,28.21758058,1252.2,1252.1,1.3578244]
[1672917848349,33.21758058,1252.2,1252.1,1.3578244]
[1672917849026,33.21473104,1252.2,1252.1,1.3578244]
[1672917849241,33.21673104,1252.2,1252.1,1.3578244]
[1672917851238,3.5,1252.1,1252.0,0.05822355]
[1672917851447,12.71914951,1252.1,1252.0,0.05822355]
[1672917851699,36.71865104,1252.1,1252.0,0.05822355]
[1672917856612,40.78369042,1252.1,1252.0,0.05822355]
[1672917856826,37.60059768,1252.1,1252.0,0.05822355]
[1672917857696,41.21772216,1252.1,1252.0,0.05822355]
[1672917871895,41.21772216,1252.1,1252.0,0.05585241]
[1672917874612,40.73916291,1252.1,1252.0,0.05585241]
[1672917883198,35.73916291,1252.1,1252.0,0.05585241]
[1672917883802,32.12203843,1252.1,1252.0,0.05585241]
[1672917883941,35.73916291,1252.1,1252.0,0.05585241]
[1672917884154,40.73916291,1252.1,1252.0,0.05585241]
[1672917885213,37.12203843,1252.1,1252.0,0.05585241]
[1672917885631,33.62203843,1252.1,1252.0,0.05585241]
[1672917885864,37.23916291,1252.1,1252.0,0.05585241]
[1672917886301,33.62203843,1252.1,1252.0,0.05585241]
[1672917888685,37.23916291,1252.1,1252.0,0.05585241]
[1672917893926,32.23916291,1252.1,1252.0,0.05585241]
[1672917894984,37.23916291,1252.1,1252.0,0.05585241]
[1672917896376,37.23916291,1252.1,1252.0,0.05219187]
[1672917900331,33.62203843,1252.1,1252.0,0.05219187]
[1672917900683,37.23916291,1252.1,1252.0,0.05219187]
[1672917900951,32.23916291,1252.1,1252.0,0.05219187]
[1672917901118,28.62203843,1252.1,1252.0,0.05219187]
[1672917901323,32.23916291,1252.1,1252.0,0.05219187]
[1672917901518,28.62203843,1252.1,1252.0,0.05219187]
[1672917901732,32.23916291,1252.1,1252.0,0.05219187]
[1672917901984,37.23916291,1252.1,1252.0,0.05219187]
[1672917911595,32.23916291,1252.1,1252.0,0.05219187]
[1672917912641,37.23916291,1252.1,1252.0,0.05219187]
[1672917916720,37.23916291,1252.1,1252.0,0.04940934]
[1672917918437,32.23916291,1252.1,1252.0,0.04940934]
[1672917919519,37.23916291,1252.1,1252.0,0.04940934]
[1672917925587,32.23916291,1252.1,1252.0,0.04940934]
[1672917926552,37.23916291,1252.1,1252.0,0.04940934]
[1672917926781,37.2354428,1252.1,1252.0,0.04940934]
[1672917927323,37.2354428,1252.1,1252.0,0.77189474]
[1672917932532,32.2354428,1252.1,1252.0,0.77189474]
[1672917933635,33.61831832,1252.1,1252.0,0.77189474]
[1672917935154,37.2354428,1252.1,1252.0,0.77189474]
[1672917942385,32.2354428,1252.1,1252.0,0.77189474]
[1672917943528,37.2354428,1252.1,1252.0,0.77189474]
[1672917948846,37.2354428,1252.1,1252.0,0.7690072]
[1672917949474,32.2354428,1252.1,1252.0,0.7690072]
[1672917950440,37.2354428,1252.1,1252.0,0.7690072]
[1672917956465,32.2354428,1252.1,1252.0,0.7690072]
[1672917957505,37.2354428,1252.1,1252.0,0.7690072]
[1672917962684,37.2354428,1252.1,1252.0,7.2e-06]
[1672917962898,45.2220228,1252.1,1252.0,7.2e-06]
[1672917963310,51.16394191,1252.1,1252.0,7.2e-06]
[1672917963718,45.2220228,1252.1,1252.0,7.2e-06]
[1672917963931,51.16394191,1252.1,1252.0,7.2e-06]
[1672917964785,45.2220228,1252.1,1252.0,7.2e-06]
[1672917977310,41.60489832,1252.1,1252.0,7.2e-06]
[1672917977467,45.21118906,1252.1,1252.0,7.2e-06]
[1672917979092,40.21118906,1252.1,1252.0,7.2e-06]
[1672917979915,45.21118906,1252.1,1252.0,7.2e-06]
[1672917982197,41.60489832,1252.1,1252.0,7.2e-06]
[1672917982552,45.21118906,1252.1,1252.0,7.2e-06]
[1672917984357,41.60489832,1252.1,1252.0,7.2e-06]
[1672917985225,3.50250248,1252.0,1251.9,0.06232861]
[1672917985446,36.68331199,1252.0,1251.9,0.06232861]
[1672917985649,36.72307352,1252.0,1251.9,0.06232861]
[1672917985969,31.72307352,1252.0,1251.9,0.06232861]
[1672917986305,28.22307352,1252.0,1251.9,0.06232861]
[1672917987008,33.22307352,1252.0,1251.9,0.06232861]
[1672917993024,28.22307352,1252.0,1251.9,0.06232861]
[1672917993915,33.22307352,1252.0,1251.9,0.06232861]
[1672917999917,28.22307352,1252.0,1251.9,0.06232861]
[1672918001176,33.22307352,1252.0,1251.9,0.06232861]
[1672918006899,28.22307352,1252.0,1251.9,0.06232861]
[1672918007951,33.22307352,1252.0,1251.9,0.06232861]
[1672918009249,33.22307352,1252.0,1251.9,0.05851145]
[1672918011963,25.23585352,1252.0,1251.9,0.05851145]
[1672918012179,33.22307352,1252.0,1251.9,0.05851145]
[1672918013236,25.23335104,1252.0,1251.9,0.05851145]